Workbook

Sheet Estimated Quantities
C3: ESTIMATED QUANTITIES | K3: DESIGNED:ERK | M3: CHECKED:GDJ
K4: DATE: 11/1/2018 | M4: DATE:11/1/2018
C5: ITEM | D5: EXTENSION | E5: WALL 1 | F5: WALL 2 | G5: WALL 3 | H5: TOTAL | I5: UNIT | J5: DESCRIPTION | N5: SHEET #
C6: 203 | D6: 35150 | G6: 15 | H6: =SUM(E6:G6) -> 15 | I6: CY | J6: GRANULAR MATERIAL, TYPE F
C8: 503 | D8: 21300 | E8: LS | F8: LS | H8: LS | I8: - | J8: UNCLASSIFIED EXCAVATION
C10: 507 | D10: 400 | G10: 1895 | H10: =SUM(E10:G10) -> 1895 | I10: FT | J10: STEEL PILES, MISC.: SOLDIER PILES HP14X73 | N10: 84
C11: 507 | D11: 400 | E11: 876 | H11: =SUM(E11:G11) -> 876 | I11: FT | J11: STEEL PILES, MISC.: SOLDIER PILES HP14X89 | N11: 84
C12: 507 | D12: 400 | E12: 1578 | H12: =SUM(E12:G12) -> 1578 | I12: FT | J12: STEEL PILES, MISC.: SOLDIER PILES HP14X117 | N12: 84
C13: 507 | D13: 400 | F13: 3267 | H13: =SUM(E13:G13) -> 3267 | I13: FT | J13: STEEL PILES, MISC.: SOLDIER PILES W27X84 | N13: 84
C15: 509 | D15: 10000 | E15: 12638 | F15: 19802 | H15: =SUM(E15:G15) -> 32440 | I15: LB | J15: EPOXY COATED REINFORCING STEEL
C17: 511 | D17: 46010 | E17: 197 | F17: 209 | H17: =SUM(E17:G17) -> 406 | I17: CY | J17: CLASS QC1 CONCRETE, RETAINING/WINGWALL NOT INCLUDING FOOTING
C18: 511 | D18: 81300 | E18: 63 | H18: =SUM(E18:G18) -> 63 | I18: EACH | J18: CONCRETE, MISC.: 8" X 24" X 69" PRECAST CONCRETE LAGGING | N18: 84
C19: 511 | D19: 81300 | E19: 69 | H19: =SUM(E19:G19) -> 69 | I19: EACH | J19: CONCRETE, MISC.: 8" X 36" X 69" PRECAST CONCRETE LAGGING | N19: 84
C20: 511 | D20: 81300 | E20: 30 | H20: =SUM(E20:G20) -> 30 | I20: EACH | J20: CONCRETE, MISC.: 8" X 24" X 69" PRECAST CONCRETE LAGGING WITH OPENING | N20: 84
C21: 511 | D21: 81300 | E21: 30 | H21: =SUM(E21:G21) -> 30 | I21: EACH | J21: CONCRETE, MISC.: 8" X 36" X 69" PRECAST CONCRETE LAGGING WITH OPENING | N21: 84
C23: 511 | D23: 81300 | G23: 41 | H23: =SUM(E23:G23) -> 41 | I23: EACH | J23: CONCRETE, MISC.: 8" X 24" X 93" PRECAST CONCRETE LAGGING | N23: 84
C24: 511 | D24: 81300 | G24: 94 | H24: =SUM(E24:G24) -> 94 | I24: EACH | J24: CONCRETE, MISC.: 8" X 36" X 93" PRECAST CONCRETE LAGGING | N24: 84
C25: 511 | D25: 81300 | G25: 47 | H25: =SUM(E25:G25) -> 47 | I25: EACH | J25: CONCRETE, MISC.: 8" X 24" X 93" PRECAST CONCRETE LAGGING WITH OPENING | N25: 84
C27: 512 | D27: 10100 | E27: 469 | F27: 490 | H27: =SUM(E27:G27) -> 959 | I27: SY | J27: SEALING OF CONCRETE SURFACES (EPOXY-URETHANE)
C28: 512 | D28: 33000 | E28: 7 | F28: 9 | H28: =SUM(E28:G28) -> 16 | I28: SY | J28: TYPE 2 WATERPROOFING
C30: 516 | D30: 13600 | E30: 58 | F30: 60 | H30: =SUM(E30:G30) -> 118 | I30: SF | J30: 1" PREFORMED EXPANSION JOINT FILLER
C32: 517 | D32: 70000 | E32: 658 | F32: 863 | H32: =SUM(E32:G32) -> 1521 | I32: FT | J32: RAILING (TWIN STEEL TUBE)
C34: 524 | D34: 94603 | E34: 300 | H34: =SUM(E34:G34) -> 300 | I34: FT | J34: DRILLED SHAFTS, 30" DIAMETER, ABOVE BEDROCK, AS PER PLAN | N34: 84
C35: 524 | D35: 94605 | E35: 420 | H35: =SUM(E35:G35) -> 420 | I35: FT | J35: DRILLED SHAFTS, 30" DIAMETER, INTO BEDROCK, AS PER PLAN | N35: 84
C36: 524 | D36: 94703 | E36: 1830 | F36: 2150 | G36: 1348 | H36: =SUM(E36:G36) -> 5328 | I36: FT | J36: DRILLED SHAFTS, 36" DIAMETER, ABOVE BEDROCK, AS PER PLAN | N36: 84
C37: 524 | D37: 94705 | E37: 1728 | F37: 1440 | G37: 500 | H37: =SUM(E37:G37) -> 3668 | I37: FT | J37: DRILLED SHAFTS, 36" DIAMETER, INTO BEDROCK, AS PER PLAN | N37: 84
C38: 524 | D38: 95000 | E38: 1378 | F38: 1420 | H38: =SUM(E38:G38) -> 2798 | I38: FT | J38: DRILLED SHAFTS, MISC.: PLUG SHAFT, 42" DIAMETER, UNREINFORCED | N38: 84
C40: SPECIAL | D40: 53000600 | E40: 1049 | G40: 2488 | H40: =SUM(E40:G40) -> 3537 | I40: SF | J40: STRUCTURES: PREFABRICATED GEOCOMPOSITE DRAIN | N40: 84
